[Event "Titled Tuesday Blitz May 2 Late 2023"]
[White "Mustafayev, Farid"]
[Black "Naroditsky, Daniel"]
[WhiteFideId "13408771"]
[BlackFideId "2026961"]
[WhiteElo "2237"]
[BlackElo "2633"]
[Result "1-0"]
[Round "01"]
[TimeControl "180+2"]
[Date "2023.05.02"]
[WhiteClock "0:00:00"]
[BlackClock "0:00:00"]

1. c4 {[%clk 0:00:01]}  e5 {[%clk 0:00:01]} 2. g3 {[%clk 0:00:01]}  c6 {[%clk 0:00:01]} 3. Bg2 {[%clk 0:00:01]}  Nf6 {[%clk 0:00:01]} 4. d4 {[%clk 0:00:01]}  d6 {[%clk 0:00:01]} 5. Nc3 {[%clk 0:00:01]}  Nbd7 {[%clk 0:00:01]} 6. b3 {[%clk 0:00:01]}  Be7 {[%clk 0:00:01]} 7. Bb2 {[%clk 0:00:01]}  O-O {[%clk 0:00:01]} 8. dxe5 {[%clk 0:00:01]}  dxe5 {[%clk 0:00:01]} 9. Nf3 {[%clk 0:00:01]}  Qc7 {[%clk 0:00:01]} 10. O-O {[%clk 0:00:01]}  Re8 {[%clk 0:00:01]} 11. Qc2 {[%clk 0:00:01]}  Nf8 {[%clk 0:00:01]} 12. Rad1 {[%clk 0:00:01]}  Ng6 {[%clk 0:00:01]} 13. Ng5 {[%clk 0:00:01]}  Bf8 {[%clk 0:00:01]} 14. Nge4 {[%clk 0:00:01]}  Nxe4 {[%clk 0:00:01]} 15. Nxe4 {[%clk 0:00:01]}  f5 {[%clk 0:00:01]} 16. Nc3 {[%clk 0:00:01]}  e4 {[%clk 0:00:01]} 17. e3 {[%clk 0:00:01]}  Ne5 {[%clk 0:00:01]} 18. Ne2 {[%clk 0:00:01]}  a5 {[%clk 0:00:01]} 19. h4 {[%clk 0:00:01]}  Be6 {[%clk 0:00:01]} 20. Nf4 {[%clk 0:00:01]}  Bf7 {[%clk 0:00:01]} 21. a4 {[%clk 0:00:01]}  Be7 {[%clk 0:00:01]} 22. Rd2 {[%clk 0:00:01]}  Bf6 {[%clk 0:00:01]} 23. Rfd1 {[%clk 0:00:01]}  Rad8 {[%clk 0:00:01]} 24. Bc3 {[%clk 0:00:00]}  Ng4 {[%clk 0:00:00]} 25. Bxf6 {[%clk 0:00:00]}  Nxf6 {[%clk 0:00:00]} 26. Qc3 {[%clk 0:00:00]}  Rxd2 {[%clk 0:00:00]} 27. Rxd2 {[%clk 0:00:00]}  h6 {[%clk 0:00:00]} 28. Bh3 {[%clk 0:00:00]}  Re5 {[%clk 0:00:00]} 29. Rd8+ {[%clk 0:00:00]}  Qxd8 {[%clk 0:00:00]} 30. Qxe5 {[%clk 0:00:00]}  Qd1+ {[%clk 0:00:00]} 31. Bf1 {[%clk 0:00:00]}  Qxb3 {[%clk 0:00:00]} 32. Qxa5 {[%clk 0:00:00]}  Qd1 {[%clk 0:00:00]} 33. Kg2 {[%clk 0:00:00]}  Qf3+ {[%clk 0:00:00]} 34. Kg1 {[%clk 0:00:00]}  Qd1 {[%clk 0:00:00]} 35. Kg2 {[%clk 0:00:00]}  Qd7 {[%clk 0:00:00]} 36. Be2 {[%clk 0:00:00]}  Ne8 {[%clk 0:00:00]} 37. Qe5 {[%clk 0:00:00]}  Nc7 {[%clk 0:00:00]} 38. Bh5 {[%clk 0:00:00]}  Bxc4 {[%clk 0:00:00]} 39. Bg6 {[%clk 0:00:00]}  Bd5 {[%clk 0:00:00]} 40. Bxf5 {[%clk 0:00:00]}  Qd8 {[%clk 0:00:00]} 41. Bxe4 {[%clk 0:00:00]}  Bxe4+ {[%clk 0:00:00]} 42. Qxe4 {[%clk 0:00:00]}  Qd7 {[%clk 0:00:00]} 43. Qe5 {[%clk 0:00:00]}  Ne8 {[%clk 0:00:00]} 44. e4 {[%clk 0:00:00]}  Nf6 {[%clk 0:00:00]} 45. h5 {[%clk 0:00:00]}  Kh7 {[%clk 0:00:00]} 46. Ne6 {[%clk 0:00:00]}  Qd3 {[%clk 0:00:00]} 47. Qf5+ {[%clk 0:00:00]}  Kg8 {[%clk 0:00:00]} 48. Nc5 {[%clk 0:00:00]}  Qc4 {[%clk 0:00:00]} 49. a5 {[%clk 0:00:00]}  Qb5 {[%clk 0:00:00]} 50. Qc8+ {[%clk 0:00:00]}  Kh7 {[%clk 0:00:00]} 51. Ne6 {[%clk 0:00:00]}  Qxh5 {[%clk 0:00:00]} 52. Nf8+ {[%clk 0:00:00]}  Kg8 {[%clk 0:00:00]} 53. Nd7+ {[%clk 0:00:00]}  Ne8 {[%clk 0:00:00]} 54. Qxb7 {[%clk 0:00:00]}  Qxa5 {[%clk 0:00:00]} 55. Qxc6 {[%clk 0:00:00]}  Qh5 {[%clk 0:00:00]} 56. Qe6+ {[%clk 0:00:00]}  Qf7 {[%clk 0:00:00]} 57. Qg4 {[%clk 0:00:00]}  Qe7 {[%clk 0:00:00]} 58. e5 {[%clk 0:00:00]}  Nc7 {[%clk 0:00:00]} 59. Qc4+ {[%clk 0:00:00]}  Ne6 {[%clk 0:00:00]} 60. Nc5 {[%clk 0:00:00]}  Qxc5 {[%clk 0:00:00]} 61. Qxe6+ {[%clk 0:00:00]}  Kh8 {[%clk 0:00:00]} 62. Qf5 {[%clk 0:00:00]}  Qd5+ {[%clk 0:00:00]} 63. Kh2 {[%clk 0:00:00]}  Kg8 {[%clk 0:00:00]} 64. Qf4 {[%clk 0:00:00]}  Qe6 {[%clk 0:00:00]} 65. Qe3 {[%clk 0:00:00]}  Kf7 {[%clk 0:00:00]} 66. Qe4 {[%clk 0:00:00]}  Kg8 {[%clk 0:00:00]} 67. Kg2 {[%clk 0:00:00]}  Kf7 {[%clk 0:00:00]} 68. f4 {[%clk 0:00:00]}  Qa2+ {[%clk 0:00:00]} 69. Kh3 {[%clk 0:00:00]}  Qa1 {[%clk 0:00:00]} 70. e6+ {[%clk 0:00:00]}  Ke7 {[%clk 0:00:00]} 71. f5 {[%clk 0:00:00]}  Qf1+ {[%clk 0:00:00]} 72. Kh4 {[%clk 0:00:00]}  Qa1 {[%clk 0:00:00]} 73. Qb7+ {[%clk 0:00:00]}  Kd6 {[%clk 0:00:00]} 74. Qd7+ {[%clk 0:00:00]}  Kc5 {[%clk 0:00:00]} 75. Qc7+ {[%clk 0:00:00]}  Kd5 {[%clk 0:00:00]} 76. Qb7+ {[%clk 0:00:00]}  Kd6 {[%clk 0:00:00]} 77. Qe4 {[%clk 0:00:00]}  Ke7 {[%clk 0:00:00]} 78. Kh5 {[%clk 0:00:00]}  Qf6 {[%clk 0:00:00]} 79. Qh4 {[%clk 0:00:00]}  g5 {[%clk 0:00:00]} 80. fxg6 {[%clk 0:00:00]} 1-0


[Site "https://www.chess.com"]

[Event "Titled Tuesday Blitz May 2 Late 2023"]
[White "Caruana, Fabiano"]
[Black "Hajiyev, Kanan"]
[WhiteFideId "2020009"]
[BlackFideId "13404148"]
[WhiteElo "2837"]
[BlackElo "2103"]
[Result "1-0"]
[Round "01"]
[TimeControl "180+2"]
[Date "2023.05.02"]
[WhiteClock "0:00:00"]
[BlackClock "0:00:00"]

1. d4 {[%clk 0:00:01]}  d5 {[%clk 0:00:01]} 2. c4 {[%clk 0:00:01]}  c6 {[%clk 0:00:01]} 3. Nf3 {[%clk 0:00:01]}  Nf6 {[%clk 0:00:01]} 4. e3 {[%clk 0:00:01]}  Bf5 {[%clk 0:00:01]} 5. Nc3 {[%clk 0:00:01]}  e6 {[%clk 0:00:01]} 6. Nh4 {[%clk 0:00:01]}  Bg4 {[%clk 0:00:01]} 7. f3 {[%clk 0:00:01]}  Bh5 {[%clk 0:00:01]} 8. Qb3 {[%clk 0:00:01]}  Qb6 {[%clk 0:00:01]} 9. g4 {[%clk 0:00:01]}  Bg6 {[%clk 0:00:01]} 10. Nxg6 {[%clk 0:00:01]}  hxg6 {[%clk 0:00:01]} 11. Bd2 {[%clk 0:00:01]}  Be7 {[%clk 0:00:01]} 12. Bd3 {[%clk 0:00:01]}  Nbd7 {[%clk 0:00:01]} 13. Qc2 {[%clk 0:00:01]}  O-O-O {[%clk 0:00:01]} 14. cxd5 {[%clk 0:00:01]}  Nxd5 {[%clk 0:00:01]} 15. Nxd5 {[%clk 0:00:01]}  exd5 {[%clk 0:00:01]} 16. O-O-O {[%clk 0:00:01]}  Rde8 {[%clk 0:00:01]} 17. Kb1 {[%clk 0:00:01]}  Kb8 {[%clk 0:00:01]} 18. h3 {[%clk 0:00:01]}  Bb4 {[%clk 0:00:00]} 19. Bc1 {[%clk 0:00:01]}  g5 {[%clk 0:00:00]} 20. e4 {[%clk 0:00:01]}  f6 {[%clk 0:00:00]} 21. exd5 {[%clk 0:00:01]}  cxd5 {[%clk 0:00:00]} 22. Bf5 {[%clk 0:00:01]}  Qc7 {[%clk 0:00:00]} 23. Qb3 {[%clk 0:00:01]}  Bd6 {[%clk 0:00:00]} 24. Qxd5 {[%clk 0:00:01]}  Nb6 {[%clk 0:00:00]} 25. Qb3 {[%clk 0:00:01]}  Re2 {[%clk 0:00:00]} 26. Bd2 {[%clk 0:00:01]}  Qc4 {[%clk 0:00:00]} 27. Qd3 {[%clk 0:00:01]}  Rhe8 {[%clk 0:00:00]} 28. Rhe1 {[%clk 0:00:00]}  Qxd3+ {[%clk 0:00:00]} 29. Bxd3 {[%clk 0:00:00]}  Rxe1 {[%clk 0:00:00]} 30. Rxe1 {[%clk 0:00:00]}  Rxe1+ {[%clk 0:00:00]} 31. Bxe1 {[%clk 0:00:00]}  Nd5 {[%clk 0:00:00]} 32. a3 {[%clk 0:00:00]}  Kc7 {[%clk 0:00:00]} 33. Kc2 {[%clk 0:00:00]}  Ne3+ {[%clk 0:00:00]} 34. Kb3 {[%clk 0:00:00]}  a6 {[%clk 0:00:00]} 35. Ba5+ {[%clk 0:00:00]}  Kd7 {[%clk 0:00:00]} 36. Be4 {[%clk 0:00:00]}  Kc8 {[%clk 0:00:00]} 37. a4 {[%clk 0:00:00]}  Ng2 {[%clk 0:00:00]} 38. Kc4 {[%clk 0:00:00]}  Nf4 {[%clk 0:00:00]} 39. Bd2 {[%clk 0:00:00]}  Nxh3 {[%clk 0:00:00]} 40. Kd5 {[%clk 0:00:00]}  Kd7 {[%clk 0:00:00]} 41. Bf5+ {[%clk 0:00:00]}  Ke7 {[%clk 0:00:00]} 42. Bc8 {[%clk 0:00:00]}  b5 {[%clk 0:00:00]} 43. a5 {[%clk 0:00:00]}  Nf4+ {[%clk 0:00:00]} 44. Kc6 {[%clk 0:00:00]}  Ne6 {[%clk 0:00:00]} 45. Bxa6 {[%clk 0:00:00]}  Nxd4+ {[%clk 0:00:00]} 46. Kd5 {[%clk 0:00:00]}  Nb3 {[%clk 0:00:00]} 47. Be1 {[%clk 0:00:00]}  b4 {[%clk 0:00:00]} 48. Bd3 {[%clk 0:00:00]}  Nxa5 {[%clk 0:00:00]} 49. Bc2 {[%clk 0:00:00]}  Nb7 {[%clk 0:00:00]} 50. Kc4 {[%clk 0:00:00]}  Na5+ {[%clk 0:00:00]} 51. Kb5 {[%clk 0:00:00]}  Nb7 {[%clk 0:00:00]} 52. Be4 {[%clk 0:00:00]}  Nd8 {[%clk 0:00:00]} 53. Bd5 {[%clk 0:00:00]}  Be5 {[%clk 0:00:00]} 54. Bxb4+ {[%clk 0:00:00]}  Kd7 {[%clk 0:00:00]} 55. b3 {[%clk 0:00:00]}  Ne6 {[%clk 0:00:00]} 56. Bxe6+ {[%clk 0:00:00]}  Kxe6 {[%clk 0:00:00]} 57. Kc6 {[%clk 0:00:00]}  Bd4 {[%clk 0:00:00]} 58. Bd2 {[%clk 0:00:00]}  Ke5 {[%clk 0:00:00]} 59. b4 {[%clk 0:00:00]}  Bf2 {[%clk 0:00:00]} 60. b5 {[%clk 0:00:00]}  Kd4 {[%clk 0:00:00]} 61. b6 {[%clk 0:00:00]}  Kd3 {[%clk 0:00:00]} 62. b7 {[%clk 0:00:00]}  Ba7 {[%clk 0:00:00]} 63. Ba5 {[%clk 0:00:00]}  Bb8 {[%clk 0:00:00]} 64. Bc7 {[%clk 0:00:00]}  Ba7 {[%clk 0:00:00]} 65. Kb5 {[%clk 0:00:00]}  Ke3 {[%clk 0:00:00]} 66. Bb6+ {[%clk 0:00:00]}  Bxb6 {[%clk 0:00:00]} 67. Kxb6 {[%clk 0:00:00]}  Kxf3 {[%clk 0:00:00]} 68. b8=Q {[%clk 0:00:00]}  Kxg4 {[%clk 0:00:00]} 69. Kc5 {[%clk 0:00:00]}  f5 {[%clk 0:00:00]} 70. Kd4 {[%clk 0:00:00]}  f4 {[%clk 0:00:00]} 71. Ke4 {[%clk 0:00:00]}  Kg3 {[%clk 0:00:00]} 72. Qe5 {[%clk 0:00:00]}  g6 {[%clk 0:00:00]} 73. Qxg5+ {[%clk 0:00:00]} 1-0


[Site "https://www.chess.com"]

[Event "Titled Tuesday Blitz May 2 Late 2023"]
[White "Paravyan, David"]
[Black "Liu, Eric"]
[WhiteFideId "4194985"]
[BlackFideId "30960240"]
[WhiteElo "2563"]
[BlackElo "2094"]
[Result "1-0"]
[Round "01"]
[TimeControl "180+2"]
[Date "2023.05.02"]
[WhiteClock "0:00:00"]
[BlackClock "0:00:00"]

1. e4 {[%clk 0:00:01]}  b6 {[%clk 0:00:01]} 2. d4 {[%clk 0:00:01]}  Bb7 {[%clk 0:00:01]} 3. Bd3 {[%clk 0:00:01]}  e6 {[%clk 0:00:01]} 4. Nf3 {[%clk 0:00:01]}  Be7 {[%clk 0:00:01]} 5. O-O {[%clk 0:00:01]}  h5 {[%clk 0:00:01]} 6. Re1 {[%clk 0:00:01]}  h4 {[%clk 0:00:01]} 7. h3 {[%clk 0:00:01]}  d5 {[%clk 0:00:01]} 8. Nc3 {[%clk 0:00:01]}  Nf6 {[%clk 0:00:01]} 9. exd5 {[%clk 0:00:01]}  Nxd5 {[%clk 0:00:01]} 10. Nxd5 {[%clk 0:00:01]}  Bxd5 {[%clk 0:00:01]} 11. Qe2 {[%clk 0:00:01]}  Nd7 {[%clk 0:00:01]} 12. Bf4 {[%clk 0:00:01]}  O-O {[%clk 0:00:01]} 13. Rad1 {[%clk 0:00:01]}  Re8 {[%clk 0:00:01]} 14. c4 {[%clk 0:00:01]}  Bb7 {[%clk 0:00:01]} 15. Be4 {[%clk 0:00:01]}  Qc8 {[%clk 0:00:01]} 16. Bg5 {[%clk 0:00:01]}  Bxg5 {[%clk 0:00:01]} 17. Nxg5 {[%clk 0:00:01]}  Nf6 {[%clk 0:00:01]} 18. Bf3 {[%clk 0:00:01]}  Bxf3 {[%clk 0:00:01]} 19. Nxf3 {[%clk 0:00:01]}  c5 {[%clk 0:00:01]} 20. b3 {[%clk 0:00:01]}  cxd4 {[%clk 0:00:01]} 21. Rxd4 {[%clk 0:00:01]}  Qc5 {[%clk 0:00:01]} 22. Qe5 {[%clk 0:00:01]}  Qxe5 {[%clk 0:00:01]} 23. Nxe5 {[%clk 0:00:01]}  Rad8 {[%clk 0:00:01]} 24. Red1 {[%clk 0:00:01]}  Rxd4 {[%clk 0:00:01]} 25. Rxd4 {[%clk 0:00:01]}  g5 {[%clk 0:00:01]} 26. f4 {[%clk 0:00:01]}  gxf4 {[%clk 0:00:01]} 27. Rxf4 {[%clk 0:00:01]}  Kg7 {[%clk 0:00:01]} 28. Rd4 {[%clk 0:00:01]}  Rc8 {[%clk 0:00:01]} 29. Nf3 {[%clk 0:00:01]}  Rc5 {[%clk 0:00:00]} 30. Nxh4 {[%clk 0:00:01]}  Ra5 {[%clk 0:00:00]} 31. a4 {[%clk 0:00:01]}  Re5 {[%clk 0:00:00]} 32. Nf3 {[%clk 0:00:01]}  Re3 {[%clk 0:00:00]} 33. b4 {[%clk 0:00:01]}  Ra3 {[%clk 0:00:00]} 34. a5 {[%clk 0:00:00]}  bxa5 {[%clk 0:00:00]} 35. b5 {[%clk 0:00:00]}  Rd3 {[%clk 0:00:00]} 36. Rxd3 {[%clk 0:00:00]} 1-0


[Site "https://www.chess.com"]

[Event "Titled Tuesday Blitz May 2 Late 2023"]
[White "Santos Flores, Alberto"]
[Black "Duda, Jan-Krzysztof"]
[WhiteFideId "3601234"]
[BlackFideId "1170546"]
[WhiteElo "2235"]
[BlackElo "2790"]
[Result "0-1"]
[Round "01"]
[TimeControl "180+2"]
[Date "2023.05.02"]
[WhiteClock "0:00:09"]
[BlackClock "0:00:39"]

1. d4 {[%clk 0:02:55]}  g6 {[%clk 0:02:58]} 2. e4 {[%clk 0:02:51]}  Bg7 {[%clk 0:02:59]} 3. Nf3 {[%clk 0:02:50]}  d6 {[%clk 0:02:58]} 4. Nc3 {[%clk 0:02:48]}  a6 {[%clk 0:02:55]} 5. Be3 {[%clk 0:02:40]}  Nd7 {[%clk 0:02:53]} 6. Bd3 {[%clk 0:02:39]}  b6 {[%clk 0:02:48]} 7. d5 {[%clk 0:02:36]}  Bb7 {[%clk 0:02:47]} 8. Qd2 {[%clk 0:02:36]}  c6 {[%clk 0:02:42]} 9. dxc6 {[%clk 0:02:36]}  Bxc6 {[%clk 0:02:43]} 10. Nd4 {[%clk 0:02:36]}  Bb7 {[%clk 0:02:42]} 11. f3 {[%clk 0:02:36]}  h5 {[%clk 0:02:39]} 12. O-O-O {[%clk 0:02:36]}  Ngf6 {[%clk 0:02:39]} 13. Kb1 {[%clk 0:02:36]}  b5 {[%clk 0:02:39]} 14. h4 {[%clk 0:02:33]}  Ne5 {[%clk 0:02:29]} 15. Bg5 {[%clk 0:02:31]}  Rc8 {[%clk 0:02:27]} 16. f4 {[%clk 0:02:17]}  Nxd3 {[%clk 0:02:19]} 17. cxd3 {[%clk 0:02:16]}  Ng4 {[%clk 0:02:17]} 18. Nf3 {[%clk 0:01:56]}  Bxc3 {[%clk 0:02:12]} 19. bxc3 {[%clk 0:01:55]}  f6 {[%clk 0:02:12]} 20. f5 {[%clk 0:01:55]}  fxg5 {[%clk 0:02:05]} 21. Qxg5 {[%clk 0:01:56]}  gxf5 {[%clk 0:02:00]} 22. Nd4 {[%clk 0:01:35]}  Ne5 {[%clk 0:01:46]} 23. Rhf1 {[%clk 0:01:19]}  Rxc3 {[%clk 0:01:40]} 24. Qxf5 {[%clk 0:00:58]}  Qb6 {[%clk 0:01:24]} 25. Ne6 {[%clk 0:00:54]}  Bc8 {[%clk 0:01:11]} 26. d4 {[%clk 0:00:50]}  Bxe6 {[%clk 0:00:49]} 27. Qxe6 {[%clk 0:00:51]}  Nc6 {[%clk 0:00:50]} 28. Qf7+ {[%clk 0:00:36]}  Kd8 {[%clk 0:00:50]} 29. e5 {[%clk 0:00:18]}  Qa5 {[%clk 0:00:42]} 30. exd6 {[%clk 0:00:16]}  Qb4+ {[%clk 0:00:41]} 31. Ka1 {[%clk 0:00:16]}  Rc2 {[%clk 0:00:39]} 32. dxe7+ {[%clk 0:00:15]}  Nxe7 {[%clk 0:00:40]} 33. Qb3 {[%clk 0:00:09]}  Qxb3 {[%clk 0:00:40]} 34. axb3 {[%clk 0:00:10]}  Nd5 {[%clk 0:00:39]} 35. Rf5 {[%clk 0:00:09]}  Nc3 {[%clk 0:00:39]} 0-1


[Site "https://www.chess.com"]

[Event "Titled Tuesday Blitz May 2 Late 2023"]
[White "Bluebaum, Matthias"]
[Black "Remolar Gallen, Jose"]
[WhiteFideId "24651516"]
[BlackFideId "2215187"]
[WhiteElo "2638"]
[BlackElo "2223"]
[Result "1-0"]
[Round "01"]
[TimeControl "180+2"]
[Date "2023.05.02"]
[WhiteClock "0:00:00"]
[BlackClock "0:00:00"]

1. d4 {[%clk 0:00:01]}  Nf6 {[%clk 0:00:01]} 2. c4 {[%clk 0:00:01]}  g6 {[%clk 0:00:01]} 3. Nc3 {[%clk 0:00:01]}  d5 {[%clk 0:00:01]} 4. cxd5 {[%clk 0:00:01]}  Nxd5 {[%clk 0:00:01]} 5. e4 {[%clk 0:00:01]}  Nxc3 {[%clk 0:00:01]} 6. bxc3 {[%clk 0:00:01]}  Bg7 {[%clk 0:00:01]} 7. Nf3 {[%clk 0:00:01]}  c5 {[%clk 0:00:01]} 8. Bb5+ {[%clk 0:00:01]}  Nd7 {[%clk 0:00:01]} 9. O-O {[%clk 0:00:01]}  O-O {[%clk 0:00:01]} 10. Re1 {[%clk 0:00:01]}  a6 {[%clk 0:00:01]} 11. Bf1 {[%clk 0:00:01]}  Qa5 {[%clk 0:00:01]} 12. Bd2 {[%clk 0:00:01]}  b5 {[%clk 0:00:01]} 13. a4 {[%clk 0:00:01]}  b4 {[%clk 0:00:01]} 14. cxb4 {[%clk 0:00:01]}  cxb4 {[%clk 0:00:01]} 15. Qb3 {[%clk 0:00:01]}  Rb8 {[%clk 0:00:01]} 16. Rab1 {[%clk 0:00:01]}  Qh5 {[%clk 0:00:01]} 17. h3 {[%clk 0:00:01]}  Nf6 {[%clk 0:00:01]} 18. e5 {[%clk 0:00:01]}  Be6 {[%clk 0:00:01]} 19. Bc4 {[%clk 0:00:01]}  Bxc4 {[%clk 0:00:01]} 20. Qxc4 {[%clk 0:00:01]}  Rfc8 {[%clk 0:00:01]} 21. Qa2 {[%clk 0:00:01]}  Ne8 {[%clk 0:00:01]} 22. Rxb4 {[%clk 0:00:01]}  e6 {[%clk 0:00:00]} 23. Rxb8 {[%clk 0:00:01]}  Rxb8 {[%clk 0:00:00]} 24. Qc4 {[%clk 0:00:01]}  Qf5 {[%clk 0:00:00]} 25. Qxa6 {[%clk 0:00:01]}  Qc2 {[%clk 0:00:00]} 26. Rc1 {[%clk 0:00:00]}  Qb3 {[%clk 0:00:00]} 27. a5 {[%clk 0:00:00]}  Bf8 {[%clk 0:00:00]} 28. Qc4 {[%clk 0:00:00]} 1-0


[Site "https://www.chess.com"]

[Event "Titled Tuesday Blitz May 2 Late 2023"]
[White "Deac, Bogdan-Daniel"]
[Black "Urbina Perez, Juan Antonio"]
[WhiteFideId "1226380"]
[BlackFideId "2217368"]
[WhiteElo "2649"]
[BlackElo "2197"]
[Result "1-0"]
[Round "01"]
[TimeControl "180+2"]
[Date "2023.05.02"]
[WhiteClock "0:00:08"]
[BlackClock "0:00:05"]

1. b3 {[%clk 0:03:00]}  d5 {[%clk 0:02:57]} 2. Bb2 {[%clk 0:03:01]}  e6 {[%clk 0:02:57]} 3. e3 {[%clk 0:02:59]}  Nf6 {[%clk 0:02:57]} 4. c4 {[%clk 0:02:57]}  Be7 {[%clk 0:02:56]} 5. cxd5 {[%clk 0:02:53]}  exd5 {[%clk 0:02:56]} 6. Nf3 {[%clk 0:02:53]}  O-O {[%clk 0:02:54]} 7. g3 {[%clk 0:02:54]}  c6 {[%clk 0:02:54]} 8. Bg2 {[%clk 0:02:54]}  a5 {[%clk 0:02:53]} 9. Nc3 {[%clk 0:02:53]}  Bf5 {[%clk 0:02:51]} 10. O-O {[%clk 0:02:51]}  Nbd7 {[%clk 0:02:47]} 11. d3 {[%clk 0:02:49]}  Bg4 {[%clk 0:02:42]} 12. h3 {[%clk 0:02:48]}  Bh5 {[%clk 0:02:42]} 13. g4 {[%clk 0:02:47]}  Bg6 {[%clk 0:02:42]} 14. Nh4 {[%clk 0:02:48]}  Re8 {[%clk 0:02:41]} 15. Nxg6 {[%clk 0:02:34]}  hxg6 {[%clk 0:02:42]} 16. Qc2 {[%clk 0:02:34]}  Bd6 {[%clk 0:02:36]} 17. Rae1 {[%clk 0:02:31]}  Qe7 {[%clk 0:02:33]} 18. Nd1 {[%clk 0:02:28]}  Be5 {[%clk 0:02:26]} 19. Bc1 {[%clk 0:02:25]}  Bc7 {[%clk 0:02:20]} 20. f4 {[%clk 0:02:22]}  a4 {[%clk 0:02:19]} 21. Bb2 {[%clk 0:02:21]}  axb3 {[%clk 0:02:17]} 22. axb3 {[%clk 0:02:22]}  Qc5 {[%clk 0:02:09]} 23. Qb1 {[%clk 0:01:33]}  Qb5 {[%clk 0:01:53]} 24. Bd4 {[%clk 0:01:32]}  Bb6 {[%clk 0:01:47]} 25. Bxb6 {[%clk 0:01:27]}  Qxb6 {[%clk 0:01:48]} 26. Re2 {[%clk 0:01:20]}  Ra3 {[%clk 0:01:44]} 27. b4 {[%clk 0:01:18]}  Rea8 {[%clk 0:01:36]} 28. Rb2 {[%clk 0:01:10]}  Qb5 {[%clk 0:01:22]} 29. Nf2 {[%clk 0:01:08]}  Qb6 {[%clk 0:01:18]} 30. Qc1 {[%clk 0:01:06]}  Ra1 {[%clk 0:01:14]} 31. Qd2 {[%clk 0:01:06]}  Rxf1+ {[%clk 0:01:12]} 32. Bxf1 {[%clk 0:01:07]}  Ra1 {[%clk 0:01:06]} 33. Kg2 {[%clk 0:01:06]}  Ne8 {[%clk 0:00:53]} 34. Be2 {[%clk 0:01:01]}  Nc7 {[%clk 0:00:44]} 35. Nd1 {[%clk 0:00:46]}  Ne6 {[%clk 0:00:41]} 36. d4 {[%clk 0:00:41]}  Nf6 {[%clk 0:00:37]} 37. Nf2 {[%clk 0:00:38]}  Nc7 {[%clk 0:00:36]} 38. g5 {[%clk 0:00:32]}  Nfe8 {[%clk 0:00:33]} 39. Qc3 {[%clk 0:00:16]}  Nd6 {[%clk 0:00:30]} 40. b5 {[%clk 0:00:16]}  Ncxb5 {[%clk 0:00:29]} 41. Rxb5 {[%clk 0:00:13]}  Nxb5 {[%clk 0:00:29]} 42. Qxa1 {[%clk 0:00:13]}  Qc7 {[%clk 0:00:24]} 43. Qa8+ {[%clk 0:00:11]}  Kh7 {[%clk 0:00:24]} 44. h4 {[%clk 0:00:12]}  Nxd4 {[%clk 0:00:24]} 45. exd4 {[%clk 0:00:09]}  Qxf4 {[%clk 0:00:25]} 46. Qa3 {[%clk 0:00:09]}  Qxd4 {[%clk 0:00:23]} 47. Qg3 {[%clk 0:00:09]}  b5 {[%clk 0:00:21]} 48. h5 {[%clk 0:00:09]}  gxh5 {[%clk 0:00:20]} 49. Bxh5 {[%clk 0:00:08]}  g6 {[%clk 0:00:19]} 50. Be2 {[%clk 0:00:08]}  b4 {[%clk 0:00:19]} 51. Ng4 {[%clk 0:00:08]}  b3 {[%clk 0:00:11]} 52. Qh4+ {[%clk 0:00:08]}  Kg7 {[%clk 0:00:09]} 53. Qh6+ {[%clk 0:00:07]}  Kg8 {[%clk 0:00:05]} 54. Nf6+ {[%clk 0:00:08]} 1-0


[Site "https://www.chess.com"]

[Event "Titled Tuesday Blitz May 2 Late 2023"]
[White "Maghsoodloo, Parham"]
[Black "Koc, Przemyslaw"]
[WhiteFideId "12539929"]
[BlackFideId "1109081"]
[WhiteElo "2647"]
[BlackElo "2161"]
[Result "1-0"]
[Round "01"]
[TimeControl "180+2"]
[Date "2023.05.02"]
[WhiteClock "0:00:00"]
[BlackClock "0:00:00"]

1. d4 {[%clk 0:00:01]}  f5 {[%clk 0:00:01]} 2. c4 {[%clk 0:00:01]}  Nf6 {[%clk 0:00:01]} 3. Nc3 {[%clk 0:00:01]}  g6 {[%clk 0:00:01]} 4. g3 {[%clk 0:00:01]}  Bg7 {[%clk 0:00:01]} 5. Bg2 {[%clk 0:00:01]}  O-O {[%clk 0:00:01]} 6. Nh3 {[%clk 0:00:01]}  e6 {[%clk 0:00:01]} 7. O-O {[%clk 0:00:01]}  d6 {[%clk 0:00:01]} 8. b3 {[%clk 0:00:01]}  c6 {[%clk 0:00:01]} 9. Bb2 {[%clk 0:00:01]}  h6 {[%clk 0:00:01]} 10. Nf4 {[%clk 0:00:01]}  g5 {[%clk 0:00:01]} 11. Nd3 {[%clk 0:00:01]}  Qe7 {[%clk 0:00:01]} 12. e4 {[%clk 0:00:01]}  fxe4 {[%clk 0:00:01]} 13. Nxe4 {[%clk 0:00:01]}  Nxe4 {[%clk 0:00:01]} 14. Bxe4 {[%clk 0:00:01]}  d5 {[%clk 0:00:01]} 15. Bg2 {[%clk 0:00:01]}  Nd7 {[%clk 0:00:01]} 16. Re1 {[%clk 0:00:01]}  Qf7 {[%clk 0:00:01]} 17. Qe2 {[%clk 0:00:01]}  dxc4 {[%clk 0:00:01]} 18. bxc4 {[%clk 0:00:01]}  Nb6 {[%clk 0:00:01]} 19. Ne5 {[%clk 0:00:01]}  Bxe5 {[%clk 0:00:01]} 20. dxe5 {[%clk 0:00:01]}  Na4 {[%clk 0:00:01]} 21. Bd4 {[%clk 0:00:01]}  c5 {[%clk 0:00:01]} 22. Be3 {[%clk 0:00:01]}  Rb8 {[%clk 0:00:01]} 23. Qc2 {[%clk 0:00:01]}  Bd7 {[%clk 0:00:01]} 24. Rad1 {[%clk 0:00:01]}  Rfc8 {[%clk 0:00:00]} 25. Rd6 {[%clk 0:00:01]}  b5 {[%clk 0:00:00]} 26. Red1 {[%clk 0:00:01]}  Rc7 {[%clk 0:00:00]} 27. cxb5 {[%clk 0:00:01]}  Bxb5 {[%clk 0:00:00]} 28. Bh3 {[%clk 0:00:01]}  Re8 {[%clk 0:00:00]} 29. Qb3 {[%clk 0:00:01]}  a6 {[%clk 0:00:00]} 30. Bxe6 {[%clk 0:00:01]}  Rxe6 {[%clk 0:00:00]} 31. Qxe6 {[%clk 0:00:01]}  Qxe6 {[%clk 0:00:00]} 32. Rxe6 {[%clk 0:00:01]}  Nc3 {[%clk 0:00:00]} 33. Rd8+ {[%clk 0:00:01]}  Kg7 {[%clk 0:00:00]} 34. h4 {[%clk 0:00:01]}  Ne4 {[%clk 0:00:00]} 35. hxg5 {[%clk 0:00:01]}  hxg5 {[%clk 0:00:00]} 36. a4 {[%clk 0:00:01]}  Bxa4 {[%clk 0:00:00]} 37. Rxa6 {[%clk 0:00:01]}  Bc6 {[%clk 0:00:00]} 38. g4 {[%clk 0:00:01]}  c4 {[%clk 0:00:00]} 39. Rd4 {[%clk 0:00:01]}  Bb5 {[%clk 0:00:00]} 40. Rb6 {[%clk 0:00:01]}  Nc3 {[%clk 0:00:00]} 41. Kg2 {[%clk 0:00:01]}  Be8 {[%clk 0:00:00]} 42. Bxg5 {[%clk 0:00:01]}  Ne2 {[%clk 0:00:00]} 43. Rd8 {[%clk 0:00:00]}  Bf7 {[%clk 0:00:00]} 44. e6 {[%clk 0:00:00]}  Bg6 {[%clk 0:00:00]} 45. Rd7+ {[%clk 0:00:00]}  Rxd7 {[%clk 0:00:00]} 46. exd7 {[%clk 0:00:00]} 1-0


[Site "https://www.chess.com"]